fUST/lending_fUST_20240819
["ID","MTS","AMOUNT","RATE_DAILY","PERIOD"]
[335227094,1723996896308,166.4,5.479e-05,2]
[335227101,1723997196306,166.4,5.479e-05,2]
[335227232,1723997440620,-165.2,0.00010959,2]
[335227233,1723997440632,-233.28,0.00010959,2]
[335227234,1723997440643,-194.4,0.00010959,2]
[335227235,1723997440654,-162.0,0.00010959,2]
[335227236,1723997440663,-810.05,0.00010959,2]
[335227237,1723997440674,-158.080029,0.00014247,2]
[335227238,1723997440684,-24900.0,0.00014451,2]
[335227239,1723997440694,-1110.8112074,0.00015,2]
[335227241,1723997440705,-782.46103051,0.00015,2]
[335227243,1723997440715,-5244.23039316,0.00015,2]
[335227245,1723997440724,-521.0,0.00015677,2]
[335227247,1723997440735,-1414.0,0.00015677,2]
[335227249,1723997440745,-8341.909,0.00015677,2]
[335227251,1723997440755,-247.92845427,0.00016,2]
[335227254,1723997440767,-2000.0,0.00016328,2]
[335227256,1723997440778,-199.80346656,0.00016337,2]
[335227258,1723997440788,-500.0,0.00016337,2]
[335227259,1723997440798,-500.0,0.00016337,2]
[335227260,1723997440808,-500.0,0.00016337,2]
[335227261,1723997440817,-609.63278688,0.00016337,2]
[335227262,1723997440827,-500.0,0.00016337,2]
[335227263,1723997440836,-1844.69418999,0.00016338,2]
[335227264,1723997440846,-40000.0,0.00016338,2]
[335227265,1723997440858,-7820.37284034,0.00016338,2]
[335227266,1723997440868,-277559.38691,0.00016428,2]
[335227267,1723997440877,-500.0,0.00016438,2]
[335227268,1723997440886,-510.4719116,0.00016438,2]
[335227269,1723997440896,-500.0,0.00016438,2]
[335227270,1723997440907,-500.0,0.00016438,2]
[335227271,1723997440916,-500.0,0.00016438,2]
[335227272,1723997440926,-500.0,0.00016438,2]
[335227273,1723997440936,-500.0,0.00016438,2]
[335227274,1723997440947,-569.70870302,0.00016438,2]
[335227275,1723997440957,-500.0,0.00016438,2]
[335227276,1723997440968,-174.00941654,0.00016438,2]
[335227277,1723997440978,-505.16786915,0.00016438,2]
[335227278,1723997440988,-500.0,0.00016438,2]
[335227279,1723997440998,-555.96616486,0.00016438,2]
[335227280,1723997441009,-500.0,0.00016438,2]
[335227281,1723997441019,-505.24686272,0.00016438,2]
[335227282,1723997441030,-500.0,0.00016438,2]
[335227283,1723997441039,-500.0,0.00016438,2]
[335227284,1723997441051,-500.0,0.00016438,2]
[335227285,1723997441061,-507.9909828,0.00016438,2]
[335227286,1723997441079,-500.0,0.00016438,2]
[335227287,1723997441093,-500.0,0.00016438,2]
[335227288,1723997441104,-505.50000001,0.00016438,2]
[335227289,1723997441118,-500.0,0.00016438,2]
[335227290,1723997441128,-170.13990363,0.00016438,2]
[335227291,1723997441138,-500.0,0.00016438,2]
[335227292,1723997441148,-500.0,0.00016438,2]
[335227293,1723997441159,-502.86987395,0.00016438,2]
[335227294,1723997441169,-500.0,0.00016438,2]
[335227295,1723997441178,-505.43564784,0.00016438,2]
[335227296,1723997441189,-507.84303351,0.00016438,2]
[335227297,1723997441199,-505.44072963,0.00016438,2]
[335227298,1723997441209,-195.19548428,0.00016438,2]
[335227299,1723997441219,-501.96568355,0.00016438,2]
[335227300,1723997441229,-500.0,0.00016438,2]
[335227301,1723997441239,-308.060783,0.00016438,2]
[335227302,1723997441248,-500.0,0.00016438,2]
[335227303,1723997441258,-500.0,0.00016438,2]
[335227304,1723997441267,-500.0,0.00016438,2]
[335227305,1723997441277,-500.0,0.00016438,2]
[335227306,1723997441287,-500.0,0.00016438,2]
[335227307,1723997441296,-500.0,0.00016438,2]
[335227308,1723997441306,-521.75951476,0.00016438,2]
[335227309,1723997441315,-896.83,0.00016438,2]
[335227310,1723997441325,-500.0,0.00016438,2]
[335227311,1723997441335,-500.0,0.00016438,2]
[335227312,1723997441345,-500.0,0.00016438,2]
[335227313,1723997441355,-508.26415308,0.00016438,2]
[335227314,1723997441367,-505.6636181,0.00016438,2]
[335227315,1723997441378,-500.0,0.00016438,2]
[335227316,1723997441388,-500.0,0.00016438,2]
[335227317,1723997441397,-408.0,0.00016438,2]
[335227318,1723997441406,-500.0,0.00016438,2]
[335227319,1723997441416,-500.0,0.00016438,2]
[335227320,1723997441425,-379.65994937,0.00016438,2]
[335227321,1723997441435,-500.0,0.00016438,2]
[335227322,1723997441444,-500.0,0.00016438,2]
[335227323,1723997441455,-511.64760546,0.00016438,2]
[335227324,1723997441467,-500.0,0.00016438,2]
[335227325,1723997441482,-500.0,0.00016438,2]
[335227326,1723997441492,-500.0,0.00016438,2]
[335227327,1723997441503,-500.0,0.00016438,2]
[335227328,1723997441513,-502.35481281,0.00016438,2]
[335227329,1723997441524,-500.0,0.00016438,2]
[335227330,1723997441534,-500.0,0.00016438,2]
[335227331,1723997441545,-500.0,0.00016438,2]
[335227332,1723997441556,-500.0,0.00016438,2]
[335227333,1723997441567,-432.03554059,0.00016438,2]
[335227334,1723997441578,-500.0,0.00016438,2]
[335227335,1723997441588,-500.0,0.00016438,2]
[335227336,1723997441598,-500.0,0.00016438,2]
[335227337,1723997441609,-500.0,0.00016438,2]
[335227338,1723997441622,-500.0,0.00016438,2]
[335227339,1723997441632,-500.0,0.00016438,2]
[335227340,1723997441642,-500.0,0.00016438,2]
[335227341,1723997441652,-508.99906591,0.00016438,2]
[335227342,1723997441664,-500.0,0.00016438,2]
[335227343,1723997441675,-500.0,0.00016438,2]
[335227344,1723997441686,-500.0,0.00016438,2]
[335227345,1723997441695,-500.0,0.00016438,2]
[335227346,1723997441705,-500.0,0.00016438,2]
[335227347,1723997441714,-500.0,0.00016438,2]
[335227348,1723997441723,-500.0,0.00016438,2]
[335227349,1723997441733,-500.0,0.00016438,2]
[335227350,1723997441742,-167.27726661,0.00016438,2]
[335227351,1723997441754,-500.0,0.00016438,2]
[335227352,1723997441764,-1024.25,0.00016438,2]
[335227353,1723997441774,-500.0,0.00016438,2]
[335227354,1723997441786,-500.0,0.00016438,2]
[335227355,1723997441797,-500.0,0.00016438,2]
[335227356,1723997441808,-500.0,0.00016438,2]
[335227357,1723997441819,-500.0,0.00016438,2]
[335227358,1723997441830,-500.0,0.00016438,2]
[335227359,1723997441840,-500.0,0.00016438,2]
[335227360,1723997441850,-500.0,0.00016438,2]
[335227361,1723997441860,-500.0,0.00016438,2]
[335227362,1723997441873,-500.0,0.00016438,2]
[335227363,1723997441884,-500.0,0.00016438,2]
[335227364,1723997441895,-500.0,0.00016438,2]
[335227365,1723997441909,-683.43,0.00016438,2]
[335227366,1723997441921,-500.0,0.00016438,2]
[335227367,1723997441932,-502.75146287,0.00016438,2]
[335227368,1723997441942,-640.56,0.00016438,2]
[335227369,1723997441953,-500.0,0.00016438,2]
[335227370,1723997441963,-571.39,0.00016438,2]
[335227371,1723997441973,-500.0,0.00016438,2]
[335227372,1723997442151,-309.0108856,0.00016438,2]
[335227373,1723997442163,-500.0,0.00016438,2]
[335227374,1723997442173,-500.0,0.00016438,2]
[335227375,1723997442184,-507.80802781,0.00016438,2]
[335227376,1723997442196,-466.80532712,0.00016438,2]
[335227377,1723997442207,-503.26337526,0.00016438,2]
[335227378,1723997442217,-500.0,0.00016438,2]
[335227379,1723997442228,-548.38,0.00016438,2]
[335227380,1723997442237,-500.0,0.00016438,2]
[335227381,1723997442247,-505.3599567,0.00016438,2]
[335227382,1723997442257,-504.08150754,0.00016438,2]
[335227383,1723997442266,-500.0,0.00016438,2]
[335227384,1723997442276,-949.6,0.00016438,2]
[335227385,1723997442286,-500.0,0.00016438,2]
[335227386,1723997442297,-500.0,0.00016438,2]
[335227387,1723997442307,-500.0,0.00016438,2]
[335227388,1723997442318,-500.0,0.00016438,2]
[335227389,1723997442328,-538.46934592,0.00016438,2]
[335227390,1723997442339,-500.0,0.00016438,2]
[335227391,1723997442349,-636.72,0.00016438,2]
[335227392,1723997442358,-417.33335301,0.00016438,2]
[335227393,1723997442369,-500.0,0.00016438,2]
[335227394,1723997442380,-500.0,0.00016438,2]
[335227395,1723997442391,-523.85,0.00016438,2]
[335227396,1723997442401,-500.0,0.00016438,2]
[335227397,1723997442410,-500.0,0.00016438,2]
[335227398,1723997442420,-500.0,0.00016438,2]
[335227399,1723997442429,-500.0,0.00016438,2]
[335227400,1723997442438,-501.6854391,0.00016438,2]
[335227401,1723997442447,-612.12252098,0.00016438,2]
[335227402,1723997442456,-500.0,0.00016438,2]
[335227403,1723997442466,-500.0,0.00016438,2]
[335227404,1723997442478,-500.0,0.00016438,2]
[335227405,1723997442489,-500.0,0.00016438,2]
[335227406,1723997442500,-500.0,0.00016438,2]
[335227407,1723997442509,-500.0,0.00016438,2]
[335227408,1723997442519,-649.0,0.00016438,2]
[335227409,1723997442528,-500.0,0.00016438,2]
[335227410,1723997442538,-500.0,0.00016438,2]
[335227411,1723997442549,-150.0,0.00016438,2]
[335227412,1723997442560,-500.0,0.00016438,2]
[335227413,1723997442572,-500.0,0.00016438,2]
[335227414,1723997442581,-500.0,0.00016438,2]
[335227415,1723997442592,-500.0,0.00016438,2]
[335227416,1723997442602,-500.0,0.00016438,2]
[335227417,1723997442611,-329.41772764,0.00016438,2]
[335227418,1723997442620,-976.81,0.00016438,2]
[335227419,1723997442629,-500.0,0.00016438,2]
[335227420,1723997442638,-611.83015375,0.00016438,2]
[335227421,1723997442648,-692.09,0.00016438,2]
[335227422,1723997442658,-252.00719866,0.00016438,2]
[335227423,1723997442670,-500.0,0.00016438,2]
[335227424,1723997442679,-500.0,0.00016438,2]
[335227425,1723997442689,-500.0,0.00016438,2]
[335227426,1723997442700,-500.0,0.00016438,2]
[335227427,1723997442712,-500.0,0.00016438,2]
[335227428,1723997442723,-500.0,0.00016438,2]
[335227429,1723997442733,-500.0,0.00016438,2]
[335227430,1723997442744,-631.03,0.00016438,2]
[335227431,1723997442754,-500.0,0.00016438,2]
[335227432,1723997442763,-500.0,0.00016438,2]
[335227433,1723997442772,-500.0,0.00016438,2]
[335227434,1723997442783,-629.57,0.00016438,2]
[335227435,1723997442792,-500.0,0.00016438,2]
[335227436,1723997442801,-500.0,0.00016438,2]
[335227437,1723997442810,-500.0,0.00016438,2]
[335227438,1723997442819,-500.0,0.00016438,2]
[335227439,1723997442828,-500.0,0.00016438,2]
[335227440,1723997442837,-500.0,0.00016438,2]
[335227441,1723997442847,-535.61701437,0.00016438,2]
[335227442,1723997442856,-500.0,0.00016438,2]
[335227443,1723997442867,-697.63,0.00016438,2]
[335227444,1723997442876,-500.0,0.00016438,2]
[335227445,1723997442886,-500.0,0.00016438,2]
[335227446,1723997442895,-500.0,0.00016438,2]
[335227447,1723997442904,-500.0,0.00016438,2]
[335227448,1723997442914,-500.0,0.00016438,2]
[335227449,1723997442923,-500.0,0.00016438,2]
[335227450,1723997442932,-500.0,0.00016438,2]
[335227451,1723997442942,-500.0,0.00016438,2]
[335227452,1723997442952,-500.0,0.00016438,2]
[335227454,1723997442961,-500.0,0.00016438,2]
[335227455,1723997442970,-500.0,0.00016438,2]
[335227456,1723997442979,-500.0,0.00016438,2]
[335227457,1723997442989,-500.0,0.00016438,2]
[335227458,1723997442998,-1303.51,0.00016438,2]
[335227459,1723997443007,-500.0,0.00016438,2]
[335227461,1723997443016,-500.0,0.00016438,2]
[335227462,1723997443025,-500.0,0.00016438,2]
[335227463,1723997443034,-500.0,0.00016438,2]
[335227464,1723997443043,-506.77248503,0.00016438,2]
[335227465,1723997443052,-500.0,0.00016438,2]
[335227466,1723997443062,-664.92,0.00016438,2]
[335227467,1723997443071,-500.0,0.00016438,2]
[335227468,1723997443081,-500.0,0.00016438,2]
[335227469,1723997443090,-500.0,0.00016438,2]
[335227470,1723997443099,-502.85908508,0.00016438,2]
[335227471,1723997443109,-500.0,0.00016438,2]
[335227472,1723997443120,-500.0,0.00016438,2]
[335227473,1723997443130,-506.40033661,0.00016438,2]
[335227474,1723997443147,-500.0,0.00016438,2]
[335227475,1723997443166,-525.02,0.00016438,2]
[335227476,1723997443196,-500.0,0.00016438,2]
[335227477,1723997443213,-168.93144031,0.00016438,2]
[335227478,1723997443229,-500.0,0.00016438,2]
[335227479,1723997443248,-500.0,0.00016438,2]
[335227480,1723997443266,-500.0,0.00016438,2]
[335227481,1723997443284,-512.40516125,0.00016438,2]
[335227482,1723997443300,-682.7,0.00016438,2]
[335227483,1723997443318,-505.41433615,0.00016438,2]
[335227484,1723997443334,-500.0,0.00016438,2]
[335227485,1723997443349,-500.0,0.00016438,2]
[335227486,1723997443360,-500.0,0.00016438,2]
[335227487,1723997443375,-500.0,0.00016438,2]
[335227488,1723997443391,-500.0,0.00016438,2]
[335227489,1723997443405,-500.0,0.00016438,2]
[335227490,1723997443422,-500.0,0.00016438,2]
[335227491,1723997443438,-500.0,0.00016438,2]
[335227492,1723997443452,-200.0,0.00016438,2]
[335227493,1723997443464,-519.3786446,0.00016438,2]
[335227494,1723997443478,-500.0,0.00016438,2]
[335227495,1723997443493,-500.0,0.00016438,2]
[335227496,1723997443508,-500.0,0.00016438,2]
[335227497,1723997443521,-500.0,0.00016438,2]
[335227498,1723997443537,-500.0,0.00016438,2]
[335227499,1723997443550,-500.0,0.00016438,2]
[335227500,1723997443561,-500.0,0.00016438,2]
[335227501,1723997443574,-500.0,0.00016438,2]
[335227502,1723997443589,-449.15210774,0.00016438,2]
[335227812,1723997446397,-197.46789226,0.00016438,2]
[335227814,1723997446407,-708.08,0.00016438,2]
[335227816,1723997446417,-500.0,0.00016438,2]
[335227818,1723997446427,-1321.04,0.00016438,2]
[335227834,1723997446437,-500.0,0.00016438,2]
[335227844,1723997446662,-500.0,0.00016438,2]
[335227847,1723997446675,-500.0,0.00016438,2]
[335227849,1723997446684,-500.0,0.00016438,2]
[335227851,1723997446694,-500.0,0.00016438,2]
[335227853,1723997446705,-1003.9,0.00016438,2]
[335227855,1723997446715,-500.0,0.00016438,2]
[335227857,1723997446724,-500.0,0.00016438,2]
[335227859,1723997446733,-517.7936347,0.00016438,2]
[335227861,1723997446744,-500.0,0.00016438,2]
[335227863,1723997446754,-500.0,0.00016438,2]
[335227865,1723997446764,-500.0,0.00016438,2]
[335227867,1723997446774,-500.0,0.00016438,2]
[335227869,1723997446784,-500.0,0.00016438,2]
[335227871,1723997446794,-500.0,0.00016438,2]
[335227873,1723997446804,-598.35,0.00016438,2]
[335227876,1723997446815,-503.5090464,0.00016438,2]
[335227878,1723997446826,-500.0,0.00016438,2]
[335227880,1723997446836,-500.0,0.00016438,2]
[335227882,1723997446846,-500.0,0.00016438,2]
[335227884,1723997446857,-500.0,0.00016438,2]
[335227886,1723997446866,-500.0,0.00016438,2]
[335227888,1723997446877,-500.0,0.00016438,2]
[335227890,1723997446888,-376.41422012,0.00016438,2]
[335227892,1723997446898,-500.0,0.00016438,2]
[335227894,1723997446908,-500.0,0.00016438,2]
[335227897,1723997446918,-522.86101654,0.00016438,2]
[335227899,1723997446928,-593.69,0.00016438,2]
[335227900,1723997446939,-500.0,0.00016438,2]
[335227902,1723997446951,-500.0,0.00016438,2]
[335227904,1723997446960,-500.0,0.00016438,2]
[335227905,1723997446972,-242.74466697,0.00016438,2]
[335227906,1723997446981,-500.0,0.00016438,2]
[335227907,1723997446992,-526.92,0.00016438,2]
[335227908,1723997447003,-502.20372437,0.00016438,2]
[335227909,1723997447012,-500.0,0.00016438,2]
[335227911,1723997447024,-690.29,0.00016438,2]
[335227913,1723997447035,-598.13,0.00016438,2]
[335227916,1723997447046,-500.0,0.00016438,2]
[335227918,1723997447055,-500.0,0.00016438,2]
[335227920,1723997447066,-500.0,0.00016438,2]
[335227922,1723997447075,-743.79,0.00016438,2]
[335227924,1723997447084,-391.39034035,0.00016438,2]
[335227926,1723997447095,-557.24,0.00016438,2]
[335227927,1723997447107,-500.0,0.00016438,2]
[335227929,1723997447116,-500.0,0.00016438,2]
[335227931,1723997447126,-500.0,0.00016438,2]
[335227933,1723997447136,-500.0,0.00016438,2]
[335227935,1723997447146,-500.0,0.00016438,2]
[335227936,1723997447155,-500.0,0.00016438,2]
[335227937,1723997447165,-752.56,0.00016438,2]
[335227938,1723997447176,-512.94873422,0.00016438,2]
[335227939,1723997447187,-600.37,0.00016438,2]
[335227940,1723997447199,-500.0,0.00016438,2]
[335227941,1723997447208,-500.0,0.00016438,2]
[335227942,1723997447218,-500.0,0.00016438,2]
[335227943,1723997447227,-500.0,0.00016438,2]
[335227944,1723997447235,-655.73,0.00016438,2]
[335227945,1723997447245,-500.0,0.00016438,2]
[335227946,1723997447257,-500.0,0.00016438,2]
[335227947,1723997447266,-500.8022216,0.00016438,2]
[335227948,1723997447275,-500.0,0.00016438,2]
[335227949,1723997447285,-500.0,0.00016438,2]
[335227950,1723997447296,-515.55398603,0.00016438,2]
[335227951,1723997447306,-500.0,0.00016438,2]
[335227952,1723997447316,-500.0,0.00016438,2]
[335227953,1723997447325,-500.0,0.00016438,2]
[335227954,1723997447334,-500.0,0.00016438,2]
[335227955,1723997447344,-500.0,0.00016438,2]
[335227956,1723997447353,-500.0,0.00016438,2]
[335227957,1723997447363,-500.0,0.00016438,2]
[335227958,1723997447373,-732.89,0.00016438,2]
[335227959,1723997447382,-500.0,0.00016438,2]
[335227960,1723997447391,-500.0,0.00016438,2]
[335227961,1723997447400,-500.0,0.00016438,2]
[335227962,1723997447411,-500.0,0.00016438,2]
[335227963,1723997447420,-500.0,0.00016438,2]
[335227964,1723997447429,-500.0,0.00016438,2]
[335227965,1723997447438,-500.0,0.00016438,2]
[335227966,1723997447448,-500.0,0.00016438,2]
[335227967,1723997447457,-500.0,0.00016438,2]
[335227968,1723997447466,-500.0,0.00016438,2]
[335227969,1723997447479,-500.0,0.00016438,2]
[335227970,1723997447490,-500.0,0.00016438,2]
[335227971,1723997447501,-500.0,0.00016438,2]
[335227972,1723997447512,-500.0,0.00016438,2]
[335227973,1723997447522,-500.0,0.00016438,2]
[335227974,1723997447532,-500.0,0.00016438,2]
[335227975,1723997447544,-500.0,0.00016438,2]
[335227976,1723997447555,-500.0,0.00016438,2]
[335227977,1723997447564,-500.0,0.00016438,2]
[335227978,1723997447574,-770.19,0.00016438,2]
[335227979,1723997447584,-500.0,0.00016438,2]
[335227980,1723997447594,-635.5952939,0.00016438,2]
[335227981,1723997447604,-500.0,0.00016438,2]
[335227982,1723997447614,-500.0,0.00016438,2]
[335227983,1723997447627,-500.0,0.00016438,2]
[335227984,1723997447638,-520.26,0.00016438,2]
[335227985,1723997447648,-287.4643648,0.00016438,2]
[335227986,1723997447659,-500.0,0.00016438,2]
[335227987,1723997447669,-314.10509722,0.00016438,2]
[335227988,1723997447678,-500.0,0.00016438,2]
[335227989,1723997447689,-521.18586828,0.00016438,2]
[335227990,1723997447701,-500.0,0.00016438,2]
[335227991,1723997447712,-500.0,0.00016438,2]
[335227992,1723997447723,-500.0,0.00016438,2]
[335227993,1723997447733,-500.0,0.00016438,2]
[335227994,1723997447744,-500.0,0.00016438,2]
[335227995,1723997447755,-500.0,0.00016438,2]
[335227996,1723997447766,-571.99,0.00016438,2]
[335227997,1723997447776,-179.59121993,0.00016438,2]
[335227998,1723997447785,-500.0,0.00016438,2]
[335227999,1723997447795,-500.0,0.00016438,2]
[335228000,1723997447804,-500.0,0.00016438,2]
[335228001,1723997447814,-500.0,0.00016438,2]
[335228002,1723997447823,-840.77,0.00016438,2]
[335228003,1723997447833,-500.0,0.00016438,2]
[335228004,1723997447843,-512.04081404,0.00016438,2]
[335228005,1723997447852,-500.0,0.00016438,2]
[335228006,1723997447862,-512.39141363,0.00016438,2]
[335228007,1723997447875,-500.0,0.00016438,2]
[335228008,1723997447884,-500.0,0.00016438,2]
[335228009,1723997447894,-500.0,0.00016438,2]
[335228010,1723997447903,-500.0,0.00016438,2]
[335228011,1723997447912,-500.0,0.00016438,2]
[335228012,1723997447923,-500.0,0.00016438,2]
[335228013,1723997447933,-504.03256699,0.00016438,2]
[335228014,1723997447944,-500.0,0.00016438,2]
[335228015,1723997447954,-457.42261557,0.00016438,2]
[335228016,1723997447964,-500.0,0.00016438,2]
[335228017,1723997447975,-500.0,0.00016438,2]
[335228018,1723997447984,-505.17290861,0.00016438,2]
[335228019,1723997447994,-500.0,0.00016438,2]
[335228020,1723997448003,-503.35131488,0.00016438,2]
[335228021,1723997448013,-607.95,0.00016438,2]
[335228022,1723997448022,-500.0,0.00016438,2]
[335228023,1723997448032,-500.0,0.00016438,2]
[335228024,1723997448041,-500.0,0.00016438,2]
[335228025,1723997448051,-500.0,0.00016438,2]
[335228026,1723997448060,-500.0,0.00016438,2]
[335228027,1723997448070,-500.0,0.00016438,2]
[335228028,1723997448079,-500.0,0.00016438,2]
[335228029,1723997448090,-500.0,0.00016438,2]
[335228030,1723997448100,-500.0,0.00016438,2]
[335228031,1723997448110,-560.14527885,0.00016438,2]
[335228032,1723997448121,-1123.13,0.00016438,2]
[335228033,1723997448130,-890.54,0.00016438,2]
[335228034,1723997448140,-1000.0,0.00016438,2]
[335228035,1723997448151,-500.0,0.00016438,2]
[335228036,1723997448160,-669.43,0.00016438,2]
[335228037,1723997448170,-943.8,0.00016438,2]
[335228038,1723997448179,-500.0,0.00016438,2]
[335228039,1723997448189,-509.52708018,0.00016438,2]
[335228040,1723997448198,-500.0,0.00016438,2]
[335228041,1723997448209,-500.0,0.00016438,2]
[335228042,1723997448219,-500.0,0.00016438,2]
[335228043,1723997448228,-500.0,0.00016438,2]
[335228044,1723997448238,-500.0,0.00016438,2]
[335228045,1723997448248,-500.0,0.00016438,2]
[335228046,1723997448257,-508.24952635,0.00016438,2]
[335228047,1723997448267,-635.3239602,0.00016438,2]
[335228048,1723997448277,-500.0,0.00016438,2]
[335228049,1723997448287,-507.59574381,0.00016438,2]
[335228050,1723997448297,-500.0,0.00016438,2]
[335228051,1723997448307,-162.77968979,0.00016438,2]
[335228052,1723997448316,-500.0,0.00016438,2]
[335228053,1723997448326,-500.0,0.00016438,2]
[335228054,1723997448337,-500.0,0.00016438,2]
[335228055,1723997448347,-500.0,0.00016438,2]
[335228056,1723997448357,-502.76378911,0.00016438,2]
[335228057,1723997448367,-500.0,0.00016438,2]
[335228058,1723997448377,-500.0,0.00016438,2]
[335228059,1723997448386,-501.98017459,0.00016438,2]
[335228060,1723997448396,-500.0,0.00016438,2]
[335228061,1723997448405,-500.0,0.00016438,2]
[335228062,1723997448415,-509.93065754,0.00016438,2]
[335228063,1723997448424,-1089.38,0.00016438,2]
[335228064,1723997448433,-500.0,0.00016438,2]
[335228065,1723997448443,-595.9,0.00016438,2]
[335228066,1723997448453,-500.0,0.00016438,2]
[335228067,1723997448462,-500.0,0.00016438,2]
[335228068,1723997448474,-514.40417949,0.00016438,2]
[335228069,1723997448486,-500.0,0.00016438,2]
[335228070,1723997448495,-302.60388788,0.00016438,2]
[335228071,1723997448505,-500.0,0.00016438,2]
[335228072,1723997448514,-1344.39,0.00016438,2]
[335228073,1723997448525,-500.0,0.00016438,2]
[335228074,1723997448534,-500.0,0.00016438,2]
[335228075,1723997448544,-500.0,0.00016438,2]
[335228076,1723997448553,-500.0,0.00016438,2]
[335228077,1723997448563,-500.0,0.00016438,2]
[335228078,1723997448573,-500.0,0.00016438,2]
[335228079,1723997448582,-500.0,0.00016438,2]
[335228080,1723997448592,-500.0,0.00016438,2]
[335228081,1723997448602,-500.0,0.00016438,2]
[335228082,1723997448611,-500.0,0.00016438,2]
[335228083,1723997448621,-500.0,0.00016438,2]
[335228084,1723997448631,-500.0,0.00016438,2]
[335228085,1723997448641,-1060.13,0.00016438,2]
[335228086,1723997448652,-500.0,0.00016438,2]
[335228087,1723997448662,-500.0,0.00016438,2]
[335228088,1723997448672,-476.72317009,0.00016438,2]
[335228089,1723997448681,-509.54141711,0.00016438,2]
[335228090,1723997448690,-500.0,0.00016438,2]
[335228091,1723997448700,-728.22,0.00016438,2]
[335228092,1723997448710,-1265.42,0.00016438,2]
[335228093,1723997448720,-500.0,0.00016438,2]
[335228094,1723997448729,-500.0,0.00016438,2]
[335228095,1723997448739,-500.0,0.00016438,2]
[335228096,1723997448749,-800.02,0.00016438,2]
[335228097,1723997448758,-500.0,0.00016438,2]
[335228098,1723997448768,-500.0,0.00016438,2]
[335228099,1723997448779,-500.0,0.00016438,2]
[335228100,1723997448789,-500.0,0.00016438,2]
[335228101,1723997448800,-500.0,0.00016438,2]
[335228102,1723997448811,-500.0,0.00016438,2]
[335228103,1723997448820,-500.0,0.00016438,2]
[335228104,1723997448831,-500.0,0.00016438,2]
[335228105,1723997448840,-500.0,0.00016438,2]
[335228106,1723997448849,-568.6745778,0.00016438,2]
[335228107,1723997448859,-500.0,0.00016438,2]
[335228108,1723997448869,-500.0,0.00016438,2]
[335228109,1723997448878,-272.91192267,0.00016438,2]
[335228110,1723997448887,-500.0,0.00016438,2]
[335228111,1723997448896,-500.0,0.00016438,2]
[335228112,1723997448906,-500.0,0.00016438,2]
[335228113,1723997448915,-500.0,0.00016438,2]
[335228114,1723997448925,-619.83,0.00016438,2]
[335228115,1723997448934,-610.08853085,0.00016438,2]
[335228116,1723997448943,-500.0,0.00016438,2]
[335228117,1723997448953,-502.59079864,0.00016438,2]
[335228118,1723997448963,-500.0,0.00016438,2]
[335228119,1723997448972,-500.0,0.00016438,2]
[335228120,1723997448982,-500.0,0.00016438,2]
[335228121,1723997448993,-515.17274686,0.00016438,2]